[Event "Cracovia Festival-A 2023"]
[Site "Krakow"]
[Date "2024.01.02"]
[Round "7.32"]
[White "Leskiewicz, Ignacy"]
[Black "Anwesh, Upadhyaya"]
[Result "0-1"]
[ECO "B10"]
[WhiteElo "2177"]
[BlackElo "2350"]
[Annotator "RC"]
[PlyCount "68"]
[EventDate "2023.12.24"]
[EventType "swiss"]
[EventCountry "POL"]
[SourceTitle "playchess.com"]
[Source "ChessBase"]
[SourceQuality "1"]
[TimeControl "40/5400+30:1800+30"]

1. e4 {[%emt 0:06:06]} c6 {[%emt 0:18:20]} 2. Nf3 {[%emt 0:02:41]} d5 {[%emt 0:00:09]} 3. d3 {[%emt 0:00:06]} g6 {[%emt 0:00:15]} 4. Nbd2 {[%emt 0:00:39]} Bg7 {[%emt 0:00:07]} 5. g3 {[%emt 0:00:23]} Nh6 {[%emt 0:00:50]} 6. Bg2 {[%emt 0:00:44]} O-O {[%emt 0:00:14]} 7. c3 {[%emt 0:01:46]} e5 {[%emt 0:00:51]} 8. O-O {[%emt 0:01:30]} f6 {[%emt 0:01:47]} 9. b4 {[%emt 0:07:26]} Be6 {[%emt 0:01:34]} 10. Nb3 {[%emt 0:12:44]} Nd7 {[%emt 0:00:13]} 11. a4 {[%emt 0:06:30]} Nf7 {[%emt 0:00:58]} 12. Ba3 {[%emt 0:05:36]} Re8 {[%emt 0:00:44]} 13. Nfd2 {[%emt 0:12:54]} Qc7 {[%emt 0:04:05]} 14. Qe2 {[%emt 0:08:06]} Rad8 {[%emt 0:00:18]} 15. c4 {[%emt 0:04:42]} dxc4 {[%emt 0:03:08]} 16. Nxc4 {[%emt 0:04:22]} Nb6 {[%emt 0:02:29]} 17. Nc5 {[%emt 0:05:04]} Bc8 {[%emt 0:00:49]} 18. Nd2 {[%emt 0:01:30]} Nd7 {[%emt 0:01:49]} 19. Rfc1 {[%emt 0:03:37]} Nxc5 {[%emt 0:03:17]} 20. bxc5 {[%emt 0:03:08]} Bh6 {[%emt 0:00:25]} 21. h4 {[%emt 0:01:31]} Be6 {[%emt 0:03:18]} 22. Bb4 {[%emt 0:03:46]} Rd7 {[%emt 0:00:53]} 23. a5 {[%emt 0:01:31]} Red8 {[%emt 0:00:59]} 24. Ra3 {[%emt 0:01:59]} Rd4 {[%emt 0:01:17]} 25. Rb1 {[%emt 0:00:18]} Bf8 {[%emt 0:04:00]} 26. a6 {[%emt 0:00:40]} Rb8 {[%emt 0:07:13]} 27. Bc3 {[%emt 0:01:14]} Rd7 {[%emt 0:00:31]} 28. Ba5 {[%emt 0:02:06]} Qc8 {[%emt 0:01:46]} 29. Rc3 {[%emt 0:00:26]} bxa6 {[%emt 0:00:24]} 30. Qf1 {[%emt 0:01:44]} Rb5 {[%emt 0:00:58]} 31. Rxb5 {[%emt 0:00:16]} axb5 {[%emt 0:00:26]} 32. Nb1 {[%emt 0:00:44]} Rd4 {[%emt 0:00:53]} 33. Rc1 {[%emt 0:00:36]} Qd7 {[%emt 0:02:57]} 34. Na3 {[%emt 0:00:29]} Ra4 {[%emt 0:00:25]} 0-1

[Event "Cracovia Festival-A 2023"]
[Site "Krakow"]
[Date "2024.01.02"]
[Round "7.33"]
[White "Kazantzoglou, Stefanos"]
[Black "Loftgaard, Mikkel Vinh"]
[Result "1/2-1/2"]
[ECO "B23"]
[WhiteElo "2152"]
[BlackElo "2322"]
[Annotator "RC"]
[PlyCount "148"]
[EventDate "2023.12.24"]
[EventType "swiss"]
[EventCountry "POL"]
[SourceTitle "playchess.com"]
[Source "ChessBase"]
[SourceQuality "1"]
[TimeControl "40/5400+30:1800+30"]

1. e4 {[%emt 0:00:02]} c5 {[%emt 0:00:31]} 2. Nc3 {[%emt 0:00:18]} e6 {[%emt 0:00:06]} 3. d4 {[%emt 0:00:02]} cxd4 {[%emt 0:00:06]} 4. Qxd4 {[%emt 0:00:05]} Nc6 {[%emt 0:00:05]} 5. Qe3 {[%emt 0:00:02]} Nf6 {[%emt 0:00:12]} 6. Nf3 {[%emt 0:00:06]} d6 {[%emt 0:00:35]} 7. b3 {[%emt 0:00:02]} Be7 {[%emt 0:00:12]} 8. Bb2 {[%emt 0:00:25]} a6 {[%emt 0:01:31]} 9. h3 {[%emt 0:01:04]} Qc7 {[%emt 0:00:15]} 10. O-O-O {[%emt 0:05:01]} O-O {[%emt 0:03:42]} 11. g4 {[%emt 0:02:30]} Nd7 {[%emt 0:03:21]} 12. h4 {[%emt 0:07:40]} b5 {[%emt 0:02:24]} 13. g5 {[%emt 0:08:46]} Qa7 {[%emt 0:06:26]} 14. Qd2 {[%emt 0:12:20]} Nc5 {[%emt 0:01:49]} 15. Nd4 {[%emt 0:04:43]} Bb7 {[%emt 0:03:17]} 16. Nxc6 {[%emt 0:02:12]} Bxc6 {[%emt 0:00:39]} 17. f3 {[%emt 0:00:04]} Rad8 {[%emt 0:09:28]} 18. Qd4 {[%emt 0:01:52]} e5 {[%emt 0:00:34]} 19. Qg1 {[%emt 0:01:16]} Rd7 {[%emt 0:02:58]} 20. Nd5 {[%emt 0:01:49]} Bxd5 {[%emt 0:04:25]} 21. exd5 {[%emt 0:00:21]} Rc7 {[%emt 0:00:58]} 22. Kb1 {[%emt 0:05:31]} a5 {[%emt 0:04:59]} 23. h5 {[%emt 0:10:58]} b4 {[%emt 0:06:20]} 24. g6 {[%emt 0:01:04]} fxg6 {[%emt 0:01:01]} 25. hxg6 {[%emt 0:00:05]} h6 {[%emt 0:02:27]} 26. Bxe5 {[%emt 0:01:24]} a4 {[%emt 0:06:44]} 27. Bc4 {[%emt 0:06:00]} axb3 {[%emt 0:00:23]} 28. cxb3 {[%emt 0:00:13]} Ra8 {[%emt 0:01:37]} 29. Qg2 {[%emt 0:02:51]} Na4 {[%emt 0:01:21]} 30. Bxg7 {[%emt 0:02:00]} Kxg7 {[%emt 0:00:49]} 31. bxa4 {[%emt 0:00:04]} Rxc4 {[%emt 0:10:08]} 32. Qe2 {[%emt 0:06:35]} Qc7 {[%emt 0:09:57]} 33. Qe6 {[%emt 0:00:49]} Bg5 {[%emt 0:00:20]} 34. Rde1 {[%emt 0:04:04]} Rf8 {[%emt 0:02:18]} 35. a5 {[%emt 0:02:10]} Qc8 {[%emt 0:00:36]} 36. a6 {[%emt 0:00:42]} Qxe6 {[%emt 0:00:15]} 37. Rxe6 {[%emt 0:00:17]} Rxf3 {[%emt 0:01:39]} 38. Rxd6 {[%emt 0:00:05]} b3 {[%emt 0:01:50]} 39. Rb6 {[%emt 0:04:35]} bxa2+ {[%emt 0:01:08]} 40. Kxa2 {[%emt 0:00:00]} Ra4+ {[%emt 0:00:00]} 41. Kb1 {[%emt 0:00:05]} Rfa3 {[%emt 0:01:34]} 42. Rd1 {[%emt 0:00:36]} Rxa6 {[%emt 0:01:52]} 43. Rxa6 {[%emt 0:00:03]} Rxa6 {[%emt 0:00:06]} 44. d6 {[%emt 0:00:06]} Kxg6 {[%emt 0:01:20]} 45. d7 {[%emt 0:00:05]} Ra8 {[%emt 0:01:36]} 46. Kc2 {[%emt 0:00:11]} Rd8 {[%emt 0:00:35]} 47. Rd5 {[%emt 0:01:48]} h5 {[%emt 0:00:40]} 48. Kd3 {[%emt 0:00:04]} h4 {[%emt 0:00:06]} 49. Ke2 {[%emt 0:01:09]} Rf8 {[%emt 0:01:17]} 50. Rd3 {[%emt 0:00:20]} Kh5 {[%emt 0:01:46]} 51. Rf3 {[%emt 0:00:26]} Rd8 {[%emt 0:00:07]} 52. Rd3 {[%emt 0:00:09]} Kg4 {[%emt 0:01:15]} 53. Kf2 {[%emt 0:00:28]} Bf6 {[%emt 0:00:55]} 54. Kg2 {[%emt 0:00:58]} Ra8 {[%emt 0:01:46]} 55. Rd5 {[%emt 0:01:39]} Ra2+ {[%emt 0:09:34]} 56. Kh1 {[%emt 0:00:13]} Bd8 {[%emt 0:00:53]} 57. Rd4+ {[%emt 0:00:42]} Kf5 {[%emt 0:00:11]} 58. Rd1 {[%emt 0:02:58]} Ke6 {[%emt 0:00:34]} 59. Rd3 {[%emt 0:00:37]} Ra4 {[%emt 0:01:48]} 60. Kg2 {[%emt 0:00:24]} Ke7 {[%emt 0:00:09]} 61. Kh3 {[%emt 0:00:33]} Bc7 {[%emt 0:00:22]} 62. Rd5 {[%emt 0:00:56]} Kd8 {[%emt 0:00:23]} 63. Rd3 {[%emt 0:01:02]} Bg3 {[%emt 0:00:46]} 64. Kg2 {[%emt 0:02:24]} Ra2+ {[%emt 0:00:06]} 65. Kh3 {[%emt 0:00:10]} Rh2+ {[%emt 0:00:27]} 66. Kg4 {[%emt 0:00:02]} Rh1 {[%emt 0:00:50]} 67. Rd5 {[%emt 0:01:31]} Be1 {[%emt 0:01:40]} 68. Rd1 {[%emt 0:03:09]} Rg1+ {[%emt 0:03:35]} 69. Kh3 {[%emt 0:00:19]} Rf1 {[%emt 0:01:20]} 70. Kg2 {[%emt 0:00:35]} Rf2+ {[%emt 0:00:15]} 71. Kg1 {[%emt 0:00:12]} Re2 {[%emt 0:01:50]} 72. Kf1 {[%emt 0:00:10]} Rc2 {[%emt 0:03:35]} 73. Rxe1 {[%emt 0:00:36]} h3 {[%emt 0:00:08]} 74. Kg1 {[%emt 0:00:07]} Kxd7 {[%emt 0:00:10]} 1/2-1/2

[Event "Cracovia Festival-A 2023"]
[Site "Krakow"]
[Date "2024.01.02"]
[Round "7.34"]
[White "Buchenau, Frank"]
[Black "Luczak, Filip"]
[Result "1-0"]
[ECO "B00"]
[WhiteElo "2135"]
[BlackElo "2319"]
[Annotator "RC"]
[PlyCount "125"]
[EventDate "2023.12.24"]
[EventType "swiss"]
[EventCountry "POL"]
[SourceTitle "playchess.com"]
[Source "ChessBase"]
[SourceQuality "1"]
[TimeControl "40/5400+30:1800+30"]

1. e4 {[%emt 0:00:02]} d6 {[%emt 0:00:26]} 2. d4 {[%emt 0:00:08]} Nd7 {[%emt 0:00:01]} 3. f4 {[%emt 0:02:21]} e5 {[%emt 0:00:55]} 4. Nf3 {[%emt 0:10:44]} Ngf6 {[%emt 0:01:59]} 5. Nc3 {[%emt 0:00:23]} exd4 {[%emt 0:00:04]} 6. Qxd4 {[%emt 0:00:11]} c6 {[%emt 0:00:09]} 7. Be3 {[%emt 0:00:13]} d5 {[%emt 0:04:41]} 8. exd5 {[%emt 0:00:18]} Bc5 {[%emt 0:00:36]} 9. Qd3 {[%emt 0:01:16]} Qe7 {[%emt 0:01:02]} 10. Kd2 {[%emt 0:01:07]} cxd5 {[%emt 0:05:45]} 11. Re1 {[%emt 0:03:21]} O-O {[%emt 0:01:16]} 12. Bxc5 {[%emt 0:15:51]} Qxc5 {[%emt 0:01:39]} 13. Qd4 {[%emt 0:04:55]} Qa5 {[%emt 0:03:51]} 14. Bd3 {[%emt 0:03:52]} Nb6 {[%emt 0:16:49]} 15. Kc1 {[%emt 0:04:12]} Bd7 {[%emt 0:10:18]} 16. Ne5 {[%emt 0:05:43]} Rac8 {[%emt 0:00:43]} 17. g4 {[%emt 0:02:07]} Bc6 {[%emt 0:01:11]} 18. g5 {[%emt 0:02:43]} Ne4 {[%emt 0:01:51]} 19. Nxc6 {[%emt 0:02:21]} Rxc6 {[%emt 0:02:00]} 20. Nxe4 {[%emt 0:02:08]} dxe4 {[%emt 0:00:10]} 21. Qxe4 {[%emt 0:00:22]} g6 {[%emt 0:00:26]} 22. a3 {[%emt 0:03:07]} Nd5 {[%emt 0:11:57]} 23. Qd4 {[%emt 0:01:26]} Re6 {[%emt 0:09:24]} 24. Rxe6 {[%emt 0:06:06]} fxe6 {[%emt 0:00:02]} 25. Qe5 {[%emt 0:01:00]} Qb6 {[%emt 0:00:15]} 26. f5 {[%emt 0:04:03]} gxf5 {[%emt 0:00:36]} 27. Re1 {[%emt 0:00:38]} Nc7 {[%emt 0:04:45]} 28. h4 {[%emt 0:00:34]} Rd8 {[%emt 0:00:27]} 29. h5 {[%emt 0:04:51]} Qd6 {[%emt 0:00:24]} 30. Bc4 {[%emt 0:05:54]} Qxe5 {[%emt 0:03:52]} 31. Rxe5 {[%emt 0:00:02]} Kg7 {[%emt 0:00:19]} 32. c3 {[%emt 0:03:07]} Rd6 {[%emt 0:00:34]} 33. Kc2 {[%emt 0:00:46]} h6 {[%emt 0:00:25]} 34. g6 {[%emt 0:02:56]} Kf6 {[%emt 0:00:05]} 35. Ra5 {[%emt 0:02:06]} Rc6 {[%emt 0:04:01]} 36. Be2 {[%emt 0:00:42]} b6 {[%emt 0:06:42]} 37. Rxa7 {[%emt 0:00:43]} e5 {[%emt 0:00:07]} 38. b4 {[%emt 0:05:19]} Nd5 {[%emt 0:01:11]} 39. Rf7+ {[%emt 0:01:34]} Ke6 {[%emt 0:00:31]} 40. c4 {[%emt 0:00:00]} Nf4 {[%emt 0:00:00]} 41. Rf8 {[%emt 0:03:26]} Rc7 {[%emt 0:13:31]} 42. Kd2 {[%emt 0:05:19]} e4 {[%emt 0:00:23]} 43. Rb8 {[%emt 0:10:38]} Ke5 {[%emt 0:00:37]} 44. Rxb6 {[%emt 0:00:40]} Rd7+ 45. Ke3 {[%emt 0:03:50]} Nxe2 {[%emt 0:05:13]} 46. Rb5+ {[%emt 0:00:54]} Kf6 {[%emt 0:00:01]} 47. Kxe2 {[%emt 0:00:15]} f4 {[%emt 0:00:01]} 48. a4 {[%emt 0:03:31]} Rd3 {[%emt 0:09:12]} 49. Rb6+ {[%emt 0:04:01]} Kg7 {[%emt 0:00:07]} 50. Rb7+ {[%emt 0:00:58]} Kg8 {[%emt 0:00:25]} 51. Rb8+ {[%emt 0:00:23]} Kg7 {[%emt 0:00:01]} 52. Rb7+ {[%emt 0:00:01]} Kg8 {[%emt 0:00:06]} 53. Rb8+ {[%emt 0:01:29]} Kg7 {[%emt 0:00:02]} 54. Rb7+ {[%emt 0:00:12]} Kg8 {[%emt 0:00:02]} 55. Rf7 {[%emt 0:00:59]} f3+ {[%emt 0:01:39]} 56. Ke1 {[%emt 0:00:48]} Ra3 {[%emt 0:01:15]} 57. b5 {[%emt 0:00:53]} Ra1+ {[%emt 0:03:10]} 58. Kd2 {[%emt 0:00:16]} Ra2+ {[%emt 0:00:37]} 59. Ke3 {[%emt 0:00:13]} Re2+ {[%emt 0:00:58]} 60. Kd4 {[%emt 0:00:24]} Re1 {[%emt 0:01:25]} 61. b6 {[%emt 0:00:25]} e3 {[%emt 0:00:02]} 62. Rxf3 {[%emt 0:00:46]} e2 {[%emt 0:00:01]} 63. Ke3 {[%emt 0:00:22]} 1-0

[Event "Cracovia Festival-A 2023"]
[Site "Krakow"]
[Date "2024.01.02"]
[Round "7.35"]
[White "Lehocz, Jozsef Jr."]
[Black "Yezhel, Valiantsin"]
[Result "1-0"]
[ECO "B22"]
[WhiteElo "2116"]
[BlackElo "2311"]
[Annotator "RC"]
[PlyCount "45"]
[EventDate "2023.12.24"]
[EventType "swiss"]
[EventCountry "POL"]
[SourceTitle "playchess.com"]
[Source "ChessBase"]
[SourceQuality "1"]
[TimeControl "40/5400+30:1800+30"]

1. e4 {[%emt 0:00:04]} c5 {[%emt 0:03:56]} 2. c3 {[%emt 0:00:19]} Nf6 {[%emt 0:01:59]} 3. e5 {[%emt 0:00:42]} Nd5 {[%emt 0:00:05]} 4. g3 {[%emt 0:00:33]} d6 {[%emt 0:01:36]} 5. exd6 {[%emt 0:02:04]} Nc6 {[%emt 0:02:42]} 6. Bg2 {[%emt 0:00:15]} Qxd6 {[%emt 0:00:04]} 7. Ne2 {[%emt 0:00:35]} e5 {[%emt 0:01:17]} 8. O-O {[%emt 0:01:08]} Bg4 {[%emt 0:03:19]} 9. h3 {[%emt 0:00:49]} Bh5 {[%emt 0:00:04]} 10. g4 {[%emt 0:02:56]} Bg6 {[%emt 0:01:55]} 11. d4 {[%emt 0:00:51]} O-O-O {[%emt 0:01:07]} 12. Na3 {[%emt 0:02:15]} Nb6 {[%emt 0:08:11]} 13. Be3 {[%emt 0:19:14]} h5 {[%emt 0:08:53]} 14. g5 {[%emt 0:20:08]} f6 {[%emt 0:03:50]} 15. Qb3 {[%emt 0:06:23]} Nd5 {[%emt 0:18:48]} 16. dxc5 {[%emt 0:07:12]} Qe6 {[%emt 0:00:15]} 17. Rfd1 {[%emt 0:11:20]} Bf7 {[%emt 0:03:53]} 18. Nb5 {[%emt 0:00:37]} Nxe3 {[%emt 0:04:08]} 19. Nxa7+ {[%emt 0:01:36]} Kb8 {[%emt 0:00:06]} 20. Nxc6+ {[%emt 0:00:43]} Qxc6 {[%emt 0:00:04]} 21. Rxd8+ {[%emt 0:01:11]} Ka7 {[%emt 0:00:06]} 22. Bxc6 {[%emt 0:01:07]} Bxb3 {[%emt 0:00:11]} 23. axb3# {[%emt 0:00:08]} 1-0

[Event "Cracovia Festival-A 2023"]
[Site "Krakow"]
[Date "2024.01.02"]
[Round "7.36"]
[White "Babiarz, Arkadiusz"]
[Black "Meurs, Tom"]
[Result "1-0"]
[ECO "C58"]
[WhiteElo "2129"]
[BlackElo "2290"]
[Annotator "RC"]
[PlyCount "59"]
[EventDate "2023.12.24"]
[EventType "swiss"]
[EventCountry "POL"]
[SourceTitle "playchess.com"]
[Source "ChessBase"]
[SourceQuality "1"]
[TimeControl "40/5400+30:1800+30"]

1. e4 {[%emt 0:00:03]} e5 {[%emt 0:00:05]} 2. Nf3 {[%emt 0:00:04]} Nc6 {[%emt 0:00:04]} 3. Bc4 {[%emt 0:00:03]} Nf6 {[%emt 0:00:05]} 4. Ng5 {[%emt 0:00:03]} d5 {[%emt 0:00:04]} 5. exd5 {[%emt 0:00:02]} Na5 {[%emt 0:00:04]} 6. Bb5+ {[%emt 0:00:04]} c6 {[%emt 0:00:05]} 7. dxc6 {[%emt 0:00:03]} bxc6 {[%emt 0:00:04]} 8. Bd3 {[%emt 0:00:05]} Nd5 {[%emt 0:01:14]} 9. Nf3 {[%emt 0:00:06]} Bd6 {[%emt 0:00:12]} 10. O-O {[%emt 0:00:08]} O-O {[%emt 0:00:16]} 11. Re1 {[%emt 0:00:07]} f5 {[%emt 0:00:14]} 12. Nxe5 {[%emt 0:00:06]} Qf6 {[%emt 0:00:10]} 13. Nf3 {[%emt 0:00:06]} g5 {[%emt 0:00:09]} 14. c4 {[%emt 0:00:11]} Nf4 {[%emt 0:00:52]} 15. Bf1 {[%emt 0:00:07]} g4 {[%emt 0:02:42]} 16. d4 {[%emt 0:00:05]} gxf3 {[%emt 0:01:20]} 17. Qxf3 {[%emt 0:00:07]} Ne6 {[%emt 0:12:26]} 18. Qc3 {[%emt 0:00:48]} Nxd4 {[%emt 0:14:53]} 19. c5 {[%emt 0:02:15]} Bc7 {[%emt 0:03:46]} 20. b4 {[%emt 0:04:50]} Be5 {[%emt 0:08:07]} 21. Rxe5 {[%emt 0:02:55]} Qxe5 {[%emt 0:00:20]} 22. Bb2 {[%emt 0:08:04]} Rd8 {[%emt 0:07:21]} 23. Na3 {[%emt 0:09:00]} Rb8 {[%emt 0:07:41]} 24. Re1 {[%emt 0:04:44]} Qg7 {[%emt 0:00:38]} 25. Kh1 {[%emt 0:02:31]} Be6 {[%emt 0:21:44]} 26. Nc2 {[%emt 0:04:39]} Bd5 {[%emt 0:09:23]} 27. Nxd4 {[%emt 0:01:14]} Nc4 {[%emt 0:00:41]} 28. Ba1 {[%emt 0:02:04]} Re8 {[%emt 0:01:04]} 29. Rc1 {[%emt 0:09:51]} f4 {[%emt 0:04:40]} 30. Qxc4 {[%emt 0:07:59]} 1-0

[Event "Cracovia Festival-A 2023"]
[Site "Krakow"]
[Date "2024.01.02"]
[Round "7.37"]
[White "Kaliszuk, Kamil"]
[Black "Marszalek, Maciej"]
[Result "1-0"]
[ECO "E73"]
[WhiteElo "2107"]
[BlackElo "2269"]
[Annotator "RC"]
[PlyCount "97"]
[EventDate "2023.12.24"]
[EventType "swiss"]
[EventCountry "POL"]
[SourceTitle "playchess.com"]
[Source "ChessBase"]
[SourceQuality "1"]
[TimeControl "40/5400+30:1800+30"]

1. d4 {[%emt 0:04:05]} Nf6 {[%emt 0:00:23]} 2. c4 {[%emt 0:00:16]} g6 {[%emt 0:04:03]} 3. Nc3 {[%emt 0:02:01]} Bg7 {[%emt 0:00:02]} 4. e4 {[%emt 0:01:28]} d6 {[%emt 0:00:02]} 5. Be2 {[%emt 0:02:24]} O-O {[%emt 0:00:09]} 6. Be3 {[%emt 0:00:07]} e5 {[%emt 0:01:26]} 7. d5 {[%emt 0:00:48]} Na6 {[%emt 0:03:54]} 8. g4 {[%emt 0:01:46]} Nc5 {[%emt 0:00:58]} 9. f3 {[%emt 0:00:09]} a5 {[%emt 0:00:23]} 10. h4 {[%emt 0:00:49]} h5 {[%emt 0:01:16]} 11. g5 {[%emt 0:01:57]} Ne8 {[%emt 0:04:04]} 12. Qd2 {[%emt 0:04:49]} Bd7 {[%emt 0:05:47]} 13. O-O-O {[%emt 0:06:29]} Qb8 {[%emt 0:02:35]} 14. Nh3 {[%emt 0:13:01]} c6 {[%emt 0:17:02]} 15. Nf2 {[%emt 0:14:08]} Nc7 {[%emt 0:06:45]} 16. dxc6 {[%emt 0:14:47]} Bxc6 {[%emt 0:00:17]} 17. Qxd6 {[%emt 0:01:00]} N5e6 {[%emt 0:00:18]} 18. Bb6 {[%emt 0:02:22]} Rd8 {[%emt 0:09:52]} 19. Bxc7 {[%emt 0:02:04]} Rxd6 {[%emt 0:01:45]} 20. Bxb8 {[%emt 0:00:07]} Rxd1+ {[%emt 0:00:02]} 21. Nfxd1 {[%emt 0:03:50]} Rxb8 {[%emt 0:00:05]} 22. Ne3 {[%emt 0:00:58]} Bf8 {[%emt 0:01:44]} 23. Ncd5 {[%emt 0:10:11]} Bc5 {[%emt 0:01:52]} 24. Nc2 {[%emt 0:00:30]} Kg7 {[%emt 0:01:11]} 25. Rh2 {[%emt 0:01:51]} Bxd5 {[%emt 0:07:18]} 26. cxd5 {[%emt 0:01:18]} Nf4 {[%emt 0:00:05]} 27. Bf1 {[%emt 0:02:03]} f6 {[%emt 0:01:30]} 28. gxf6+ {[%emt 0:00:35]} Kxf6 {[%emt 0:00:01]} 29. Kd2 {[%emt 0:01:51]} Rc8 {[%emt 0:05:30]} 30. a3 {[%emt 0:00:54]} Ke7 {[%emt 0:01:44]} 31. Kd1 {[%emt 0:03:55]} g5 {[%emt 0:03:09]} 32. hxg5 {[%emt 0:01:12]} Rg8 {[%emt 0:00:01]} 33. Ne1 {[%emt 0:00:38]} Rxg5 {[%emt 0:04:42]} 34. Nd3 {[%emt 0:00:15]} Rg1 {[%emt 0:07:24]} 35. Nxf4 {[%emt 0:00:28]} Rxf1+ {[%emt 0:00:11]} 36. Ke2 {[%emt 0:00:03]} Rc1 {[%emt 0:02:24]} 37. Kd2 {[%emt 0:00:05]} Rf1 {[%emt 0:00:26]} 38. Nd3 {[%emt 0:01:18]} Bd4 {[%emt 0:00:05]} 39. Rxh5 {[%emt 0:01:22]} Rxf3 {[%emt 0:00:06]} 40. Nxe5 {[%emt 0:00:00]} Rf2+ {[%emt 0:00:00]} 41. Kd3 {[%emt 0:08:50]} Bxb2 {[%emt 0:01:20]} 42. Rh7+ {[%emt 0:02:17]} Kd8 {[%emt 0:02:01]} 43. Nc4 {[%emt 0:01:54]} b5 {[%emt 0:05:53]} 44. Nxa5 {[%emt 0:01:20]} Bxa3 {[%emt 0:00:56]} 45. Nc6+ {[%emt 0:00:10]} Ke8 {[%emt 0:00:21]} 46. e5 {[%emt 0:01:50]} Rf1 {[%emt 0:02:08]} 47. Rb7 {[%emt 0:00:40]} Rb1 {[%emt 0:01:57]} 48. e6 {[%emt 0:00:51]} Bd6 {[%emt 0:00:22]} 49. Rd7 {[%emt 0:00:22]} 1-0

[Event "Cracovia Festival-A 2023"]
[Site "Krakow"]
[Date "2024.01.02"]
[Round "7.38"]
[White "Warchol, Kamil"]
[Black "Ramirez Garcia, Jorge Alberto"]
[Result "1/2-1/2"]
[ECO "B10"]
[WhiteElo "2108"]
[BlackElo "2249"]
[Annotator "RC"]
[PlyCount "83"]
[EventDate "2023.12.24"]
[EventType "swiss"]
[EventCountry "POL"]
[SourceTitle "playchess.com"]
[Source "ChessBase"]
[SourceQuality "1"]
[TimeControl "40/5400+30:1800+30"]

1. e4 c6 {[%emt 0:11:15]} 2. c4 {[%emt 0:00:11]} d5 {[%emt 0:00:34]} 3. cxd5 {[%emt 0:00:12]} cxd5 {[%emt 0:00:22]} 4. exd5 {[%emt 0:00:04]} Nf6 {[%emt 0:00:08]} 5. Nc3 {[%emt 0:00:05]} Nxd5 {[%emt 0:00:23]} 6. Nf3 {[%emt 0:00:10]} Nc6 {[%emt 0:00:36]} 7. Bb5 {[%emt 0:00:20]} g6 {[%emt 0:01:15]} 8. Ne5 {[%emt 0:06:49]} Qd6 {[%emt 0:05:20]} 9. d4 {[%emt 0:05:22]} Bg7 {[%emt 0:02:18]} 10. Qe2 {[%emt 0:11:17]} O-O {[%emt 0:04:23]} 11. Bxc6 {[%emt 0:03:01]} bxc6 {[%emt 0:03:15]} 12. O-O {[%emt 0:02:40]} Nxc3 {[%emt 0:18:40]} 13. bxc3 {[%emt 0:00:13]} c5 {[%emt 0:04:38]} 14. Ba3 {[%emt 0:08:32]} Ba6 {[%emt 0:10:20]} 15. Nd3 {[%emt 0:06:36]} Rfd8 {[%emt 0:14:02]} 16. Rfd1 {[%emt 0:06:34]} Rac8 {[%emt 0:00:32]} 17. Qf3 {[%emt 0:09:24]} Bxd3 {[%emt 0:00:56]} 18. Qxd3 {[%emt 0:00:21]} Qd5 {[%emt 0:01:57]} 19. Qf1 {[%emt 0:14:20]} cxd4 {[%emt 0:01:27]} 20. cxd4 {[%emt 0:00:55]} e6 {[%emt 0:01:41]} 21. Bc5 {[%emt 0:09:31]} Rd7 {[%emt 0:00:11]} 22. Qb5 {[%emt 0:05:00]} e5 {[%emt 0:03:30]} 23. Qb3 {[%emt 0:00:39]} a6 {[%emt 0:01:23]} 24. Rac1 {[%emt 0:05:20]} exd4 {[%emt 0:01:34]} 25. Ba3 {[%emt 0:00:10]} Rxc1 {[%emt 0:04:22]} 26. Rxc1 {[%emt 0:00:22]} h5 {[%emt 0:00:27]} 27. Rd1 {[%emt 0:01:40]} d3 {[%emt 0:04:57]} 28. Qxd5 {[%emt 0:02:46]} Rxd5 {[%emt 0:00:06]} 29. Bb4 {[%emt 0:00:10]} Rb5 {[%emt 0:02:22]} 30. Be1 {[%emt 0:00:24]} Rd5 {[%emt 0:01:23]} 31. g3 {[%emt 0:00:50]} f5 {[%emt 0:00:36]} 32. Bd2 {[%emt 0:00:56]} Bb2 {[%emt 0:00:43]} 33. Kg2 {[%emt 0:01:22]} Kf7 {[%emt 0:00:20]} 34. Kf3 {[%emt 0:00:34]} Bd4 {[%emt 0:00:45]} 35. Be1 {[%emt 0:00:37]} Bc5 {[%emt 0:00:38]} 36. Bd2 {[%emt 0:00:27]} Ke6 {[%emt 0:00:15]} 37. h4 {[%emt 0:00:27]} Kd6 {[%emt 0:00:37]} 38. Re1 {[%emt 0:00:26]} Kd7 {[%emt 0:00:32]} 39. Kg2 {[%emt 0:00:37]} Bb6 {[%emt 0:00:41]} 40. Kf3 {[%emt 0:00:00]} Rb5 {[%emt 0:00:00]} 41. Bc3 {[%emt 0:02:05]} Ba5 {[%emt 0:05:33]} 42. Rd1 {[%emt 0:01:54]} 1/2-1/2

[Event "Cracovia Festival-A 2023"]
[Site "Krakow"]
[Date "2024.01.02"]
[Round "7.39"]
[White "Wojdak, Jan"]
[Black "Jedraszek, Pawel"]
[Result "1/2-1/2"]
[ECO "C50"]
[WhiteElo "2219"]
[BlackElo "2124"]
[Annotator "RC"]
[PlyCount "78"]
[EventDate "2023.12.24"]
[EventType "swiss"]
[EventCountry "POL"]
[SourceTitle "playchess.com"]
[Source "ChessBase"]
[SourceQuality "1"]
[TimeControl "40/5400+30:1800+30"]

1. e4 {[%emt 0:07:34]} e5 {[%emt 0:00:23]} 2. Nf3 {[%emt 0:00:06]} Nc6 {[%emt 0:00:04]} 3. Bc4 {[%emt 0:01:32]} Nf6 {[%emt 0:00:08]} 4. d3 {[%emt 0:00:05]} Bc5 {[%emt 0:00:45]} 5. Nc3 {[%emt 0:00:07]} d6 {[%emt 0:01:01]} 6. Na4 {[%emt 0:00:26]} Bb6 {[%emt 0:00:59]} 7. a3 {[%emt 0:00:40]} h6 {[%emt 0:01:03]} 8. h3 {[%emt 0:00:59]} O-O {[%emt 0:00:51]} 9. O-O {[%emt 0:01:23]} Be6 {[%emt 0:11:34]} 10. Bxe6 {[%emt 0:00:11]} fxe6 {[%emt 0:00:02]} 11. b4 {[%emt 0:07:40]} Qe8 {[%emt 0:05:37]} 12. Nxb6 {[%emt 0:08:39]} axb6 {[%emt 0:00:02]} 13. c3 {[%emt 0:07:18]} Qf7 {[%emt 0:07:27]} 14. Nh2 {[%emt 0:02:09]} Qg6 {[%emt 0:04:25]} 15. Ng4 {[%emt 0:07:34]} Rf7 {[%emt 0:08:58]} 16. Nxf6+ {[%emt 0:00:56]} Rxf6 {[%emt 0:00:21]} 17. Be3 {[%emt 0:02:24]} d5 {[%emt 0:08:07]} 18. Qg4 {[%emt 0:01:54]} Qf7 {[%emt 0:00:56]} 19. c4 {[%emt 0:10:34]} dxc4 {[%emt 0:04:21]} 20. dxc4 {[%emt 0:00:06]} Nd4 {[%emt 0:00:20]} 21. Ra2 {[%emt 0:15:51]} c5 {[%emt 0:08:05]} 22. bxc5 {[%emt 0:02:29]} bxc5 {[%emt 0:00:02]} 23. f4 {[%emt 0:07:37]} exf4 {[%emt 0:09:58]} 24. Rxf4 {[%emt 0:00:11]} Rxf4 {[%emt 0:00:15]} 25. Bxf4 {[%emt 0:00:21]} Kh7 {[%emt 0:03:16]} 26. Be5 {[%emt 0:03:35]} Nc6 {[%emt 0:02:05]} 27. Bd6 {[%emt 0:04:41]} Ra4 {[%emt 0:04:23]} 28. e5 {[%emt 0:02:39]} Na5 {[%emt 0:04:12]} 29. Qe4+ {[%emt 0:03:06]} Qg6 {[%emt 0:00:02]} 30. Qxg6+ {[%emt 0:00:25]} Kxg6 {[%emt 0:00:01]} 31. Bxc5 {[%emt 0:00:10]} Nxc4 {[%emt 0:01:34]} 32. Bd6 {[%emt 0:00:54]} Ra6 {[%emt 0:03:15]} 33. Rc2 {[%emt 0:02:00]} b5 {[%emt 0:02:28]} 34. Bb4 {[%emt 0:00:26]} Ra4 {[%emt 0:02:07]} 35. Bf8 {[%emt 0:00:21]} Kf7 {[%emt 0:01:58]} 36. Rf2+ {[%emt 0:00:02]} Kg8 {[%emt 0:00:09]} 37. Bb4 {[%emt 0:00:53]} Nxe5 {[%emt 0:02:18]} 38. Rf8+ {[%emt 0:00:02]} Kh7 {[%emt 0:00:06]} 39. Rb8 {[%emt 0:00:07]} Nc6 {[%emt 0:00:55]} 1/2-1/2